fUST/lending_fUST_20250618
["ID","MTS","AMOUNT","RATE_DAILY","PERIOD"]
[366439610,1750256954258,-460.0,0.00021917,6]
[366439611,1750256954284,-460.0,0.00021917,6]
[366439612,1750256954310,-460.0,0.00021917,6]
[366439613,1750256954333,-460.0,0.00021917,6]
[366439614,1750256954356,-460.0,0.00021917,6]
[366439615,1750256954379,-460.0,0.00021917,6]
[366439616,1750256954404,-460.0,0.00021917,6]
[366439617,1750256954431,-460.0,0.00021917,6]
[366439618,1750256954456,-460.0,0.00021917,6]
[366439619,1750256954479,-460.0,0.00021917,6]
[366439620,1750256954503,-537.36,0.00021917,6]
[366439621,1750256954527,-740.41,0.00021917,6]
[366439622,1750256954667,-515.49,0.00021917,6]
[366439623,1750256954691,-210.23128801,0.00021917,6]
[366439624,1750256956100,-500.0,0.00021704,2]
[366439625,1750256956123,-249.76871199,0.00021917,6]
[366439626,1750256956156,-474.99742324,0.00021934,6]
[366439627,1750256956178,-500.0,0.00021973,2]
[366439628,1750256956200,-501.31127163,0.00021973,2]
[366439629,1750256956223,-158.43134718,0.00022,22]
[366439630,1750256956253,-841.56865282,0.00022,22]
[366439631,1750256956274,-500.0,0.00022021,2]
[366439632,1750256956296,-153.08324004,0.0002209,2]
[366439633,1750256956317,-238.17762246,0.00022102,2]
[366439634,1750256956350,-474.99742324,0.00022107,6]
[366439635,1750256956371,-207.4,0.00022166,2]
[366439636,1750256956396,-478.12,0.00022191,6]
[366439637,1750256956420,-460.0,0.00022191,6]
[366439638,1750256956442,-460.0,0.00022191,6]
[366439639,1750256956463,-460.0,0.00022191,6]
[366439640,1750256956487,-460.0,0.00022191,6]
[366439641,1750256956508,-460.0,0.00022191,6]
[366439642,1750256956530,-460.0,0.00022191,6]
[366439643,1750256956553,-460.0,0.00022191,6]
[366439644,1750256956577,-460.0,0.00022191,6]
[366439645,1750256956598,-460.0,0.00022191,6]
[366439646,1750256956619,-460.0,0.00022191,6]
[366439647,1750256956642,-460.0,0.00022191,6]
[366439648,1750256956663,-460.0,0.00022191,6]
[366439649,1750256956685,-460.0,0.00022191,6]
[366439650,1750256956706,-460.0,0.00022191,6]
[366439651,1750256956727,-460.0,0.00022191,6]
[366439652,1750256956748,-460.0,0.00022191,6]
[366439653,1750256956770,-460.0,0.00022191,6]
[366439654,1750256956793,-460.0,0.00022191,6]
[366439655,1750256956818,-460.0,0.00022191,6]
[366439656,1750256956843,-1818.04,0.00022191,6]
[366439657,1750256956867,-460.0,0.00022191,6]
[366439658,1750256956892,-806.02,0.00022191,6]
[366439659,1750256956919,-928.48,0.00022191,6]
[366439660,1750256956945,-549.16,0.00022191,6]
[366439661,1750256956967,-460.0,0.00022191,6]
[366439662,1750256956990,-460.0,0.00022191,6]
[366439663,1750256957015,-1302.2,0.00022191,6]
[366439664,1750256957037,-460.0,0.00022191,6]
[366439665,1750256957059,-460.0,0.00022191,6]
[366439666,1750256957081,-460.0,0.00022191,6]
[366439667,1750256957103,-420.0,0.00022191,6]
[366439668,1750256957127,-1104.1,0.00022191,6]
[366439669,1750256957149,-460.0,0.00022191,6]
[366439670,1750256957172,-1305.18,0.00022191,6]
[366439671,1750256957195,-460.0,0.00022191,6]
[366439672,1750256957218,-460.0,0.00022191,6]
[366439673,1750256957240,-158.4,0.00022191,6]
[366439674,1750256957263,-973.52,0.00022191,6]
[366439675,1750256957288,-231.09,0.00022191,6]
[366439676,1750256957310,-472.78,0.00022191,6]
[366439677,1750256957334,-974.83,0.00022191,6]
[366439678,1750256957356,-460.0,0.00022191,6]
[366439679,1750256957378,-460.0,0.00022191,6]
[366439680,1750256957408,-460.0,0.00022191,6]
[366439681,1750256957431,-460.0,0.00022191,6]
[366439682,1750256957453,-240.42,0.00022191,6]
[366439683,1750256957477,-588.59,0.00022191,6]
[366439684,1750256957500,-460.0,0.00022191,6]
[366439685,1750256957522,-212.7,0.00022191,6]
[366439686,1750256957543,-460.0,0.00022191,6]
[366439687,1750256957566,-346.73,0.00022191,6]
[366439688,1750256957588,-460.0,0.00022191,6]
[366439689,1750256957613,-460.0,0.00022191,6]
[366439690,1750256957636,-460.0,0.00022191,6]
[366439691,1750256957659,-460.0,0.00022191,6]
[366439692,1750256957681,-460.0,0.00022191,6]
[366439693,1750256957702,-460.0,0.00022191,6]
[366439694,1750256957723,-332.054791,0.00022191,6]
[366439695,1750256957744,-460.0,0.00022191,6]
[366439696,1750256957766,-460.0,0.00022191,6]
[366439697,1750256957791,-460.0,0.00022191,6]
[366439698,1750256957816,-537.36,0.00022191,6]
[366439699,1750256957840,-740.41,0.00022191,6]
[366439700,1750256957862,-460.0,0.00022191,6]
[366439701,1750256957884,-335.38,0.000222,7]
[366439702,1750256957906,-1000.0,0.00022252,2]
[366439703,1750256957939,-474.99742324,0.00022279,6]
[366439704,1750256957961,-300.0,0.00022318,2]
[366439705,1750256957992,-474.99742324,0.00022452,7]
[366439706,1750256958014,-460.0,0.00022465,6]
[366439707,1750256958037,-460.0,0.00022465,6]
[366439708,1750256958059,-460.0,0.00022465,6]
[366439709,1750256958082,-460.0,0.00022465,6]
[366439710,1750256958105,-477.79,0.00022465,6]
[366439711,1750256958127,-152.88324414,0.00022465,6]
[366439712,1750256958150,-460.0,0.00022465,6]
[366439713,1750256958172,-460.0,0.00022465,6]
[366439714,1750256958196,-460.0,0.00022465,6]
[366439715,1750256958217,-272.96,0.00022465,6]
[366439716,1750256958241,-1818.04,0.00022465,6]
[366439717,1750256958263,-521.73974904,0.00022465,6]
[366439718,1750256958288,-806.02,0.00022465,6]
[366439719,1750256958312,-928.48,0.00022465,6]
[366439720,1750256958335,-549.16,0.00022465,6]
[366439721,1750256958356,-460.0,0.00022465,6]
[366439722,1750256958379,-460.0,0.00022465,6]
[366439723,1750256958407,-1302.2,0.00022465,6]
[366439724,1750256958430,-460.0,0.00022465,6]
[366439725,1750256958451,-201.93340498,0.00022465,6]
[366439726,1750256958477,-1104.1,0.00022465,6]
[366439727,1750256958500,-460.0,0.00022465,6]
[366439728,1750256958524,-1211.4353027,0.00022465,6]
[366439729,1750256966137,-160.0,0.00021128,2]
[366439730,1750256966160,-460.0,0.00021917,6]
[366439731,1750256966185,-460.0,0.00022191,6]
[366439732,1750256966209,-93.7446973,0.00022465,6]
[366439733,1750256966232,-460.0,0.00022465,6]
[366439734,1750256966257,-973.52,0.00022465,6]
[366439735,1750256966282,-974.83,0.00022465,6]
[366439736,1750256966305,-460.0,0.00022465,6]
[366439737,1750256966330,-460.0,0.00022465,6]
[366439738,1750256966354,-588.59,0.00022465,6]
[366439739,1750256966379,-460.0,0.00022465,6]
[366439740,1750256966406,-460.0,0.00022465,6]
[366439741,1750256966433,-460.0,0.00022465,6]
[366439742,1750256966456,-460.0,0.00022465,6]
[366439743,1750256966481,-460.0,0.00022465,6]
[366439744,1750256966505,-460.0,0.00022465,6]
[366439745,1750256966529,-460.0,0.00022465,6]
[366439746,1750256966553,-537.36,0.00022465,6]
[366439747,1750256966577,-91.0860215,0.00022465,6]
[366439748,1750256968163,-812.0,0.00018839,2]
[366439749,1750256968190,-649.3239785,0.00022465,6]
[366439750,1750256968216,-460.0,0.00022465,6]
[366439751,1750256968242,-460.0,0.00022465,6]
[366439752,1750256968264,-500.0,0.00022521,2]
[366439753,1750256968288,-200.34040903,0.00022569,2]
[366439754,1750256968311,-40634.57732721,0.000226,7]
[366439772,1750257031958,-909.57,0.00020712,2]
[366439774,1750257031968,-213.43818883,0.00021128,2]
[366439776,1750257031979,-835.98428123,0.00021128,2]
[366439778,1750257031989,-300.0,0.00021916,2]
[366439780,1750257031999,-460.0,0.00021917,6]
[366439782,1750257032009,-460.0,0.00021917,6]
[366439784,1750257032019,-746.23,0.00021917,6]
[366439786,1750257032029,-460.0,0.00021917,6]
[366439788,1750257032040,-511.01,0.00021917,6]
[366439790,1750257032049,-1802.45,0.00021917,6]
[366439792,1750257032060,-861.87,0.00021917,6]
[366439794,1750257032070,-207.4,0.00022166,2]
[366439796,1750257032080,-460.0,0.00022191,6]
[366439798,1750257032091,-460.0,0.00022191,6]
[366439800,1750257032101,-746.23,0.00022191,6]
[366439802,1750257032111,-511.01,0.00022191,6]
[366439804,1750257032122,-1802.45,0.00022191,6]
[366439806,1750257032132,-861.87,0.00022191,6]
[366439809,1750257032142,-460.0,0.00022465,6]
[366439811,1750257032152,-460.0,0.00022465,6]
[366439813,1750257032162,-746.23,0.00022465,6]
[366439815,1750257032172,-511.01,0.00022465,6]
[366439817,1750257032182,-48.70398301,0.00022465,6]
[366439819,1750257032194,-1753.74601699,0.00022465,6]
[366439821,1750257032204,-861.87,0.00022465,6]
[366439823,1750257032214,-1819.14,0.00022595,2]
[366439825,1750257032224,-16545.03267279,0.000226,7]
[366439827,1750257032238,-1057.41,0.000226,7]
[366439829,1750257032248,-2136.81471614,0.00022627,2]
[366439831,1750257032258,-414.62109598,0.00022639,2]
[366439833,1750257032268,-160.0,0.00022727,2]
[366439835,1750257032278,-460.0,0.00022739,6]
[366439837,1750257032288,-460.0,0.00022739,6]
[366439839,1750257032298,-460.0,0.00022739,6]
[366439841,1750257032307,-460.0,0.00022739,6]
[366439843,1750257032317,-460.0,0.00022739,6]
[366439845,1750257032326,-1302.2,0.00022739,6]
[366439847,1750257032335,-460.0,0.00022739,6]
[366439849,1750257032344,-1104.1,0.00022739,6]
[366439850,1750257032355,-460.0,0.00022739,6]
[366439851,1750257032364,-1305.18,0.00022739,6]
[366439852,1750257032374,-460.0,0.00022739,6]
[366439853,1750257032385,-973.52,0.00022739,6]
[366439854,1750257032395,-974.83,0.00022739,6]
[366439855,1750257032410,-460.0,0.00022739,6]
[366439856,1750257032419,-460.0,0.00022739,6]
[366439857,1750257032429,-588.59,0.00022739,6]
[366439858,1750257032439,-460.0,0.00022739,6]
[366439859,1750257032448,-460.0,0.00022739,6]
[366439860,1750257032458,-460.0,0.00022739,6]
[366439861,1750257032467,-460.0,0.00022739,6]
[366439862,1750257032478,-460.0,0.00022739,6]
[366439863,1750257032493,-198.9,0.00022739,6]
[366439864,1750257032502,-460.0,0.00022739,6]
[366439865,1750257032512,-537.36,0.00022739,6]
[366439866,1750257032521,-740.41,0.00022739,6]
[366439867,1750257032530,-460.0,0.00022739,6]
[366439868,1750257032541,-460.0,0.00022739,6]
[366439869,1750257032550,-460.0,0.00022739,6]
[366439870,1750257032560,-151.0,0.00022739,6]
[366439871,1750257032569,-460.0,0.00022739,6]
[366439872,1750257032578,-151.0,0.00022739,6]
[366439873,1750257032586,-746.23,0.00022739,6]
[366439874,1750257032596,-511.01,0.00022739,6]
[366439875,1750257032605,-1802.45,0.00022739,6]
[366439876,1750257032615,-861.87,0.00022739,6]
[366439877,1750257032624,-427.38813758,0.00022781,2]
[366439878,1750257032634,-1500.0,0.000228,2]
[366439879,1750257032642,-338.12580573,0.000229,8]
[366439880,1750257032651,-414.62109591,0.00022992,2]
[366439881,1750257032660,-1000.0,0.00023,23]
[366439882,1750257032670,-338.1258057,0.00023003,8]
[366439883,1750257032679,-460.0,0.00023013,6]
[366439884,1750257032688,-460.0,0.00023013,6]
[366439885,1750257032697,-460.0,0.00023013,6]
[366439886,1750257032706,-460.0,0.00023013,6]
[366439888,1750257032716,-1302.2,0.00023013,6]
[366439890,1750257032725,-1104.1,0.00023013,6]
[366439892,1750257032736,-460.0,0.00023013,6]
[366439894,1750257032746,-1305.18,0.00023013,6]
[366439896,1750257032755,-460.0,0.00023013,6]
[366439898,1750257032764,-973.52,0.00023013,6]
[366439900,1750257032774,-974.83,0.00023013,6]
[366439902,1750257032783,-561.83,0.00023013,6]
[366439904,1750257032792,-460.0,0.00023013,6]
[366439906,1750257032801,-588.59,0.00023013,6]
[366439908,1750257032810,-460.0,0.00023013,6]
[366439910,1750257032821,-418.27,0.00023013,6]
[366439912,1750257032830,-460.0,0.00023013,6]
[366439914,1750257032839,-460.0,0.00023013,6]
[366439916,1750257032849,-460.0,0.00023013,6]
[366439931,1750257032978,-460.0,0.00023013,6]
[366439933,1750257032989,-537.36,0.00023013,6]
[366439934,1750257032998,-740.41,0.00023013,6]
[366439936,1750257033008,-534.24,0.00023013,6]
[366439937,1750257033018,-460.0,0.00023013,6]
[366439938,1750257033028,-460.0,0.00023013,6]
[366439939,1750257033038,-506.42733765,0.00023013,6]
[366439940,1750257033047,-746.23,0.00023013,6]
[366439941,1750257033057,-511.01,0.00023013,6]
[366439942,1750257033067,-1802.45,0.00023013,6]
[366439944,1750257033077,-861.87,0.00023013,6]
[366439947,1750257033087,-338.1258057,0.00023107,8]
[366439949,1750257033097,-2136.81471613,0.00023171,2]
[366439950,1750257033106,-1000.0,0.00023188,3]
[366439953,1750257033116,-338.1258057,0.0002321,8]
[366439955,1750257033125,-168.0,0.00023216,2]
[366439956,1750257033135,-653.0,0.00023236,2]
[366439958,1750257033146,-2160.0,0.00023236,2]
[366439959,1750257033156,-406.0,0.00023236,2]
[366439960,1750257033165,-3000.0,0.00023248,3]
[366439961,1750257033175,-460.0,0.00023287,6]
[366439962,1750257033185,-460.0,0.00023287,6]
[366439964,1750257033195,-239.88,0.00023287,6]
[366439965,1750257033205,-460.0,0.00023287,6]
[366439966,1750257033215,-1302.2,0.00023287,6]
[366439968,1750257033225,-1104.1,0.00023287,6]
[366439970,1750257033237,-460.0,0.00023287,6]
[366439972,1750257033247,-1305.18,0.00023287,6]
[366439974,1750257033259,-595.39,0.00023287,6]
[366439976,1750257033269,-973.52,0.00023287,6]
[366439978,1750257033279,-974.83,0.00023287,6]
[366439980,1750257033289,-460.0,0.00023287,6]
[366439982,1750257033298,-588.59,0.00023287,6]
[366439983,1750257033308,-460.0,0.00023287,6]
[366439984,1750257033318,-460.0,0.00023287,6]
[366439985,1750257033327,-460.0,0.00023287,6]
[366439986,1750257033337,-460.0,0.00023287,6]
[366439987,1750257033347,-460.0,0.00023287,6]
[366439988,1750257033357,-537.36,0.00023287,6]
[366439989,1750257033367,-740.41,0.00023287,6]
[366439990,1750257033377,-460.0,0.00023287,6]
[366439991,1750257033387,-460.0,0.00023287,6]
[366439992,1750257033397,-746.23,0.00023287,6]
[366439993,1750257033411,-511.01,0.00023287,6]
[366439994,1750257033420,-1802.45,0.00023287,6]
[366439995,1750257033430,-861.87,0.00023287,6]
[366439996,1750257033441,-308.91,0.000233,7]
[366439997,1750257033452,-338.1258057,0.00023314,9]
[366439998,1750257033462,-1000.0,0.00023326,2]
[366439999,1750257033471,-414.62109591,0.00023345,2]
[366440000,1750257033482,-500.0,0.00023348,2]
[366440001,1750257033492,-338.1258057,0.00023417,9]
[366440002,1750257033502,-338.1258057,0.00023521,9]
[366440003,1750257033512,-215.0738,0.00023535,2]
[366440004,1750257033522,-460.0,0.00023561,6]
[366440005,1750257033531,-460.0,0.00023561,6]
[366440006,1750257033541,-460.0,0.00023561,6]
[366440007,1750257033550,-1302.2,0.00023561,6]
[366440008,1750257033560,-1104.1,0.00023561,6]
[366440009,1750257033570,-460.0,0.00023561,6]
[366440010,1750257033580,-1305.18,0.00023561,6]
[366440011,1750257033589,-973.52,0.00023561,6]
[366440012,1750257033599,-974.83,0.00023561,6]
[366440013,1750257033608,-460.0,0.00023561,6]
[366440014,1750257033618,-588.59,0.00023561,6]
[366440015,1750257033628,-460.0,0.00023561,6]
[366440016,1750257033638,-460.0,0.00023561,6]
[366440017,1750257033648,-460.0,0.00023561,6]
[366440018,1750257033658,-460.0,0.00023561,6]
[366440019,1750257033668,-267.25353345,0.00023561,6]
[366440020,1750257033677,-537.36,0.00023561,6]
[366440021,1750257033687,-740.41,0.00023561,6]
[366440022,1750257033697,-460.0,0.00023561,6]
[366440023,1750257033707,-460.0,0.00023561,6]
[366440024,1750257033717,-746.23,0.00023561,6]
[366440025,1750257033727,-511.01,0.00023561,6]
[366440026,1750257033737,-1802.45,0.00023561,6]
[366440027,1750257033747,-861.87,0.00023561,6]
[366440028,1750257033758,-338.1258057,0.00023624,9]
[366440029,1750257033768,-414.62109591,0.00023698,2]
[366440030,1750257033778,-2136.81471613,0.00023716,2]
[366440031,1750257033788,-338.1258057,0.00023728,9]
[366440032,1750257033798,-396.66975223,0.00023773,2]
[366440033,1750257033807,-532111.56680023,0.0002378,5]
[366440034,1750257033818,-1057.41,0.000238,7]
[366440035,1750257033828,-420.0,0.00023817,2]
[366440036,1750257033838,-338.1258057,0.00023831,10]
[366440037,1750257033849,-460.0,0.00023835,6]
[366440038,1750257033859,-247.52,0.00023835,6]
[366440039,1750257033870,-456.29,0.00023835,6]
[366440040,1750257033881,-1302.2,0.00023835,6]
[366440041,1750257033891,-1104.1,0.00023835,6]
[366440042,1750257033901,-460.0,0.00023835,6]
[366440043,1750257033912,-1305.18,0.00023835,6]
[366440044,1750257033922,-973.52,0.00023835,6]
[366440045,1750257033932,-974.83,0.00023835,6]
[366440046,1750257033943,-460.0,0.00023835,6]
[366440047,1750257033954,-588.59,0.00023835,6]
[366440048,1750257033964,-460.0,0.00023835,6]
[366440049,1750257033974,-460.0,0.00023835,6]
[366440050,1750257033984,-460.0,0.00023835,6]
[366440051,1750257033994,-460.0,0.00023835,6]
[366440052,1750257034004,-537.36,0.00023835,6]
[366440053,1750257034015,-740.41,0.00023835,6]
[366440054,1750257034025,-460.0,0.00023835,6]
[366440055,1750257034035,-746.23,0.00023835,6]
[366440056,1750257034045,-511.01,0.00023835,6]
[366440057,1750257034055,-1802.45,0.00023835,6]
[366440058,1750257034064,-861.87,0.00023835,6]
[366440059,1750257034074,-216946.82814,0.00023899,4]
[366440060,1750257034084,-28609.02894102,0.000239,7]
[366440099,1750257037931,-460.0,0.00021917,6]
[366440101,1750257037941,-460.0,0.00022191,6]
[366440103,1750257037950,-28570.58105898,0.000239,7]
[366440104,1750257037959,-500.59896885,0.00023904,2]
[366440106,1750257037969,-338.1258057,0.00023934,10]
[366440109,1750257037979,-600.0,0.00023973,2]
[366440110,1750257037992,-1000.0,0.00024,24]
[366440112,1750257038002,-994.22,0.00024,2]
[366440114,1750257038011,-273.4,0.00024,2]
[366440116,1750257038021,-273.8,0.00024,2]
[366440119,1750257038031,-200.0,0.00024,15]
[366440121,1750257038041,-375180.74654557,0.00024,30]
[366440123,1750257038050,-1499.999999,0.00024,30]
[366440125,1750257038060,-18755.5598225,0.00024,2]
[366440127,1750257038070,-338.1258057,0.00024038,10]
[366440128,1750257038079,-414.62109591,0.00024052,2]
[366440130,1750257038088,-460.0,0.00024109,6]
[366440132,1750257038099,-1302.2,0.00024109,6]
[366440135,1750257038109,-1104.1,0.00024109,6]
[366440136,1750257038118,-460.0,0.00024109,6]
[366440138,1750257038128,-1305.18,0.00024109,6]
[366440141,1750257038137,-973.52,0.00024109,6]
[366440143,1750257038147,-974.83,0.00024109,6]
[366440145,1750257038157,-460.0,0.00024109,6]
[366440147,1750257038166,-588.59,0.00024109,6]
[366440149,1750257038176,-460.0,0.00024109,6]
[366440150,1750257038185,-460.0,0.00024109,6]
[366440152,1750257038194,-460.0,0.00024109,6]
[366440154,1750257038204,-245.1,0.00024109,6]
[366440156,1750257038213,-537.36,0.00024109,6]
[366440158,1750257038223,-740.41,0.00024109,6]
[366440160,1750257038232,-460.0,0.00024109,6]
[366440163,1750257038245,-746.23,0.00024109,6]
[366440165,1750257038255,-511.01,0.00024109,6]
[366440166,1750257038266,-1802.45,0.00024109,6]
[366440169,1750257038276,-861.87,0.00024109,6]
[366440170,1750257038286,-338.1258057,0.00024141,10]
[366440172,1750257038295,-151.0,0.00024148,7]
[366440175,1750257038305,-338.1258057,0.00024245,10]
[366440176,1750257038314,-2136.81471613,0.0002426,2]
[366440179,1750257038323,-308.91,0.000243,7]
[366440181,1750257038333,-338.1258057,0.00024348,11]
[366440182,1750257038343,-151.0,0.00024359,7]
[366440185,1750257038352,-460.0,0.00024383,6]
[366440186,1750257038362,-1302.2,0.00024383,6]
[366440189,1750257038372,-1104.1,0.00024383,6]
[366440190,1750257038381,-460.0,0.00024383,6]
[366440192,1750257038391,-1305.18,0.00024383,6]
[366440194,1750257038401,-973.52,0.00024383,6]
[366440197,1750257038412,-974.83,0.00024383,6]
[366440199,1750257038423,-460.0,0.00024383,6]
[366440201,1750257038433,-588.59,0.00024383,6]
[366440203,1750257038442,-460.0,0.00024383,6]
[366440204,1750257038451,-460.0,0.00024383,6]
[366440206,1750257038461,-460.0,0.00024383,6]
[366440208,1750257038470,-537.36,0.00024383,6]
[366440210,1750257038480,-740.41,0.00024383,6]
[366440212,1750257038493,-460.0,0.00024383,6]
[366440214,1750257038502,-746.23,0.00024383,6]
[366440216,1750257038512,-511.01,0.00024383,6]
[366440218,1750257038522,-1802.45,0.00024383,6]
[366440220,1750257038531,-861.87,0.00024383,6]
[366440222,1750257038541,-158.9019424,0.00024384,2]
[366440224,1750257038550,-177.0323298,0.00024384,2]
[366440226,1750257038559,-573.8932911,0.00024384,2]
[366440228,1750257038568,-414.62109591,0.00024405,2]
[366440230,1750257038578,-338.1258057,0.00024452,11]
[366440232,1750257038587,-2728.71,0.00024478,2]
[366440234,1750257038597,-28935.1023937,0.000245,7]
[366440236,1750257038606,-1200.0,0.00024521,2]
[366440238,1750257038615,-338.1258057,0.00024555,11]
[366440240,1750257038625,-151.0,0.00024569,7]
[366440242,1750257038635,-754.10696022,0.0002461,2]
[366440244,1750257038644,-460.0,0.00024657,6]
[366440246,1750257038654,-1302.2,0.00024657,6]
[366440248,1750257038663,-1104.1,0.00024657,6]
[366440250,1750257038673,-460.0,0.00024657,6]
[366440252,1750257038682,-1305.18,0.00024657,6]
[366440254,1750257038691,-973.52,0.00024657,6]
[366440256,1750257038701,-974.83,0.00024657,6]
[366440258,1750257038710,-372.9510826,0.00024657,6]
[366440260,1750257038719,-588.59,0.00024657,6]
[366440262,1750257038728,-460.0,0.00024657,6]
[366440264,1750257038740,-460.0,0.00024657,6]
[366440266,1750257038749,-460.0,0.00024657,6]
[366440268,1750257038759,-537.36,0.00024657,6]
[366440270,1750257038768,-740.41,0.00024657,6]
[366440272,1750257038777,-460.0,0.00024657,6]
[366440274,1750257038786,-746.23,0.00024657,6]
[366440276,1750257038796,-511.01,0.00024657,6]
[366440278,1750257038805,-1802.45,0.00024657,6]
[366440280,1750257038814,-861.87,0.00024657,6]
[366440282,1750257038824,-428.23192971,0.00024658,2]
[366440284,1750257038833,-338.1258057,0.00024659,11]
[366440286,1750257038842,-577.139978,0.00024696,3]
[366440288,1750257038851,-151.0,0.000247,8]
[366440290,1750257038860,-2058.3478,0.000247,120]
[366440292,1750257038870,-2200.0,0.00024754,2]
[366440294,1750257038879,-338.1258057,0.00024762,11]
[366440296,1750257038888,-151.0,0.0002478,7]
[366440298,1750257038897,-2136.81471613,0.00024804,2]
[366440300,1750257038906,-942.50700121,0.00024804,2]
[366440302,1750257038916,-441.95414645,0.00024823,2]
[366440304,1750257038925,-323.29730117,0.00024823,2]
[366440306,1750257038935,-942.50700112,0.00024838,2]
[366440308,1750257038944,-338.1258057,0.00024866,12]
[366440310,1750257038954,-942.50700112,0.00024872,2]
[366440312,1750257038963,-266.26,0.0002488,120]
[366440314,1750257038972,-68135.58,0.000249,2]
[366440316,1750257038981,-715742.71295481,0.000249,2]
[366440318,1750257038996,-84205.41137219,0.000249,2]
[366440320,1750257039006,-223.0315306,0.00024904,2]
[366440322,1750257039015,-623.91940288,0.00024906,2]
[366440448,1750257040594,-414.62109591,0.00024758,2]
[366440450,1750257040604,-318.58759824,0.00024906,2]
[366440452,1750257040615,-460.0,0.00024931,6]
[366440454,1750257040626,-1302.2,0.00024931,6]
[366440456,1750257040636,-1104.1,0.00024931,6]
[366440458,1750257040646,-460.0,0.00024931,6]
[366440460,1750257040656,-1305.18,0.00024931,6]
[366440462,1750257040666,-973.52,0.00024931,6]
[366440464,1750257040675,-974.83,0.00024931,6]
[366440466,1750257040685,-588.59,0.00024931,6]
[366440468,1750257040694,-380.95318322,0.00024931,6]
[366440470,1750257040707,-79.04681678,0.00024931,6]
[366440472,1750257040716,-214.49606283,0.00024931,6]
[366440475,1750257040728,-245.50393717,0.00024931,6]
[366440476,1750257040738,-128.39187882,0.00024931,6]
[366440479,1750257040750,-331.60812118,0.00024931,6]
[366440481,1750257040761,-537.36,0.00024931,6]
[366440483,1750257040770,-222.09656594,0.00024931,6]
[366440730,1750257042994,-713.44,0.00021917,6]
[366440732,1750257043005,-713.44,0.00022191,6]
[366440734,1750257043014,-713.44,0.00022465,6]
[366440736,1750257043024,-713.44,0.00022739,6]
[366440738,1750257043034,-713.44,0.00023013,6]
[366440740,1750257043043,-713.44,0.00023287,6]
[366440742,1750257043053,-518.31343406,0.00024931,6]
[366440744,1750257043062,-507.25,0.00024931,6]
[366440746,1750257043072,-746.23,0.00024931,6]
[366440748,1750257043081,-511.01,0.00024931,6]
[366440750,1750257043091,-1802.45,0.00024931,6]
[366440752,1750257043100,-861.87,0.00024931,6]
[366440754,1750257043110,-689.96,0.00024935,4]
[366440756,1750257043119,-942.50700112,0.0002494,2]
[366440758,1750257043129,-338.1258057,0.00024969,12]
[366440760,1750257043138,-942.50700112,0.00024973,2]
[366440762,1750257043147,-151.0,0.0002499,7]
[366440764,1750257043157,-200.0,0.00024996,120]
[366440766,1750257043167,-1000.0,0.00025,25]
[366440768,1750257043176,-152.0,0.00025,120]
[366440770,1750257043186,-1057.41,0.00025,7]
[366440772,1750257043195,-2025.43105538,0.00025,14]